[Event "22nd Indian Women chT 2025"]
[Site "Gujarat"]
[Date "2025.03.05"]
[Round "1.5"]
[White "Dina Patel"]
[Black "Priyanka Nutakki"]
[Result "0-1"]
[Annotator "TA"]
[ECO "C07"]
[WhiteElo "1484"]
[BlackElo "2284"]
[PlyCount "130"]
[EventDate "2025.03.03"]
[EventCountry "IND"]
[SourceTitle "playchess.com"]
[Source "ChessBase"]
[SourceQuality "1"]
[TimeControl "5400+30"]

{[%evp 14,129,0,-12,-8,-15,-13,-20,-21,-39,-45,-47,-43,-50,-52,-51,-47,-62,-49,-79,-60,-66,-58,-68,-40,-42,-44,-58,-52,-62,-45,-62,-43,-85,-54,-84,-91,-91,-95,-154,-160,-164,-156,-160,-145,-260,-263,-227,-160,-162,-158,-211,-194,-217,-190,-221,-208,-206,-215,-223,-214,-238,-227,-240,-239,-216,-206,-208,-204,-346,-287,-337,-321,-491,-329,-522,-521,-453,-410,-367,-253,-193,-216,-154,-185,-1473,-1498,-1354,-1262,-29980,-29981,-29986,-29987,-29987,-29988,-29988,-29989,-29989,-29990,-29990,-29991,-29991,-29992,-29992,-29993,-29993,-29994,-29994,-29995,-29995,-29995,-29996,-29997,-29997,-29997,-29998,-29999,-29999]} 1. e4 {[%emt 0:00:03]} e6 {[%emt 0:01:19]} 2. d4 {[%emt 0:01:01]} d5 {[%emt 0:00:06]} 3. Nd2 {[%emt 0:00:23]} c5 {[%emt 0:00:16]} 4. c3 {[%emt 0:00:41]} cxd4 {[%emt 0:00:39]} 5. cxd4 {[%emt 0:00:13]} Nc6 {[%emt 0:00:21]} 6. Ngf3 {[%emt 0:00:44]} dxe4 {[%emt 0:00:43]} 7. Nxe4 {[%emt 0:00:24]} Bb4+ {[%emt 0:00:28]} 8. Bd2 {[%emt 0:02:19]} Bxd2+ {[%emt 0:03:29] C07: French Tarrasch: 3...c5, 4 Ngf3 and 4 exd5 Qxd5.} 9. Qxd2 {[%emt 0:01:08]} Nge7 {[%emt 0:01:18]} 10. Bb5 {[%emt 0:02:55]} O-O {[%emt 0:02:12] The position is equal.} 11. Bxc6 {[%emt 0:02:59]} Nxc6 {[%emt 0:00:31]} 12. O-O {[%emt 0:00:51]} b6 $146 {[%emt 0:02:02]} (12... f5 13. Nc5 b6 14. Nb3 Ba6 15. Rfe1 Bc4 16. Rad1 h6 17. Rc1 Bd5 18. Rc3 Rc8 {1-0 Darie,C (1120)-Shukhman,A (1583) EU-ch U08 Girls 27th 2017 (2)}) 13. Nc3 {[%emt 0:03:34]} Ne7 {[%emt 0:01:20]} 14. Rad1 {[%emt 0:02:05]} Bb7 {[%emt 0:00:19]} 15. Qf4 {[%emt 0:01:35]} Rc8 {[%emt 0:02:06]} 16. Rfe1 {[%emt 0:05:33]} Nd5 {[%emt 0:05:49]} 17. Nxd5 {[%emt 0:02:10]} Qxd5 {[%emt 0:00:08]} 18. b3 {[%emt 0:01:45]} Rfd8 {[%emt 0:09:45]} 19. Rc1 {[%emt 0:03:50]} f6 {[%emt 0:13:31]} 20. Qe3 {[%emt 0:03:08]} Rxc1 {[%emt 0:03:04]} 21. Rxc1 {[%emt 0:00:43]} Qd6 {[%emt 0:00:25]} 22. Re1 {[%emt 0:04:25]} Bd5 {[%emt 0:03:13]} 23. Nd2 {[%emt 0:05:05]} Rc8 {[%emt 0:03:50] Black plays on the queen side and is better} 24. Nf3 {[%emt 0:03:26]} Qa3 {[%emt 0:04:02] Black is more active. Black keeps a firm grip on the game.} 25. Qd2 {[%emt 0:01:14]} a5 {[%emt 0:01:55]} 26. Kf1 {[%emt 0:03:12]} ({White should play} 26. Rb1) 26... a4 $17 {[%emt 0:03:23]} 27. bxa4 {[%emt 0:01:54]} Bxa2 {[%emt 0:00:26]} ({Much less strong is} 27... Qxa2 28. Qxa2 Bxa2 29. Ra1 $17) 28. Kg1 {[%emt 0:02:25]} Qxa4 {[%emt 0:01:34]} 29. Rc1 {[%emt 0:03:04] Dodges b5} (29. Ra1 $17) 29... Rxc1+ $19 {[%emt 0:05:01]} 30. Qxc1 {[%emt 0:00:11][%mdl 4096] Endgame KQB-KQN. Black is a pawn up.} Qd7 {[%emt 0:02:18] Against Qc8+} 31. Qb2 {[%emt 0:00:25]} Qc6 {[%emt 0:00:14]} 32. h3 {[%emt 0:02:20]} (32. Ne1 $17 Bd5 33. f3) 32... Bd5 {[%emt 0:00:04]} 33. Ne1 {[%emt 0:00:44]} b5 {[%emt 0:01:01]} 34. f3 {[%emt 0:01:01]} Qc4 {[%emt 0:04:33]} 35. Nc2 {[%emt 0:02:28]} Qe2 {[%emt 0:05:50][%cal Ob5b4] [#]} 36. Qc3 {[%emt 0:01:32]} Bc4 {[%emt 0:00:38]} 37. Kh2 {[%emt 0:02:22]} h5 {[%emt 0:02:07]} 38. Nb4 {[%emt 0:01:03]} Qf2 {[%emt 0:01:57]} 39. Nc2 {[%emt 0:01:39]} h4 {[%emt 0:01:03]} 40. Ne3 {[%emt 0:01:05]} Qe2 {[%emt 0:02:56]} 41. Qa3 {[%emt 0:00:50]} (41. Ng4 $142) 41... Kh7 {[%emt 0:01:11]} 42. Nxc4 {[%emt 0:00:44]} Qxc4 {[%emt 0:00:48] KQ-KQ. Black is a pawn up.} 43. Qe3 {[%emt 0:00:14]} (43. Qd6 {was worth a try.}) 43... Kg8 {[%emt 0:01:19] [#]} 44. Qe4 {[%emt 0:00:29]} (44. Qe1 $142) 44... b4 {[%emt 0:03:10]} 45. Qa8+ {[%emt 0:01:37]} Kf7 {[%emt 0:00:06][%cal Ob4b3] Threatens to win with ...b3!.} 46. Qb7+ {[%emt 0:00:12]} Kg6 {[%emt 0:00:06]} 47. Qe4+ {[%emt 0:00:14]} f5 {[%emt 0:00:05]} 48. Qxh4 {[%emt 0:00:51]} Qc7+ {[%emt 0:03:53]} 49. Kg1 $2 {[%emt 0:01:03]} (49. f4) 49... b3 {[%emt 0:01:39]} 50. Qe1 {[%emt 0:01:03]} Kf7 {[%emt 0:00:35] ( -> ...b2)} 51. Kf1 {[%emt 0:01:03]} b2 {[%emt 0:00:27] Black mates.} 52. Qb1 {[%emt 0:00:25]} Qc1+ {[%emt 0:00:08]} 53. Qxc1 {[%emt 0:00:10]} bxc1=Q+ {[%emt 0:00:06]} 54. Ke2 {[%emt 0:00:09]} Qc2+ {[%emt 0:00:09]} 55. Ke3 {[%emt 0:00:07]} g5 {[%emt 0:00:05][%csl Gg5][%cal Rf5f4]} 56. g3 {[%emt 0:00:21]} Qc3+ {[%emt 0:00:09]} 57. Ke2 {[%emt 0:00:08]} Qxd4 {[%emt 0:00:05]} 58. Kf1 {[%emt 0:00:12]} Qe3 {[%emt 0:00:03]} 59. Kg2 {[%emt 0:00:23]} Qe2+ {[%emt 0:00:03]} 60. Kg1 {[%emt 0:00:10]} Qxf3 {[%emt 0:00:10]} 61. Kh2 {[%emt 0:00:15]} Qf2+ {[%emt 0:00:04]} 62. Kh1 {[%emt 0:00:06]} f4 {[%emt 0:00:02]} 63. gxf4 {[%emt 0:00:31]} gxf4 {[%emt 0:00:03]} 64. h4 {[%emt 0:00:10]} f3 {[%emt 0:00:02][%csl Gf3][%cal Rf2g2]} 65. h5 {[%emt 0:00:08]} Qg2# {[%emt 0:00:02] Weighted Error Value: White=0.38/Black=0.10 (very precise)   Mistake:       	White=7     	---        Inaccurate:     	White=3     	Black=4      OK:         	White=14    	Black=24     Best:        	White=6     	Black=1} 0-1

[Event "22nd Indian Women chT 2025"]
[Site "Gujarat"]
[Date "2025.03.05"]
[Round "1.6"]
[White "Chitlange Sakshi"]
[Black "Kapadia Khanak"]
[Result "1-0"]
[Annotator "TA"]
[ECO "E73"]
[WhiteElo "2200"]
[BlackElo "1578"]
[PlyCount "131"]
[EventDate "2025.03.03"]
[EventCountry "IND"]
[SourceTitle "playchess.com"]
[Source "ChessBase"]
[SourceQuality "1"]
[TimeControl "5400+30"]

{[%evp 15,130,34,64,13,44,18,43,29,28,5,5,-12,-13,-10,0,-22,-14,-114,-91,-130,29,28,31,33,103,92,96,35,174,156,184,168,227,180,373,367,363,349,432,411,470,402,391,354,531,507,503,473,486,474,765,759,804,615,859,862,1136,1034,1325,1306,3031,2991,29987,763,825,546,508,537,498,497,596,583,596,586,577,577,632,650,620,620,772,587,576,525,29979,29980,29984,29985,29985,29986,29986,29987,29987,29988,29988,29989,29989,29990,29990,29991,29991,29991,29993,29994,29995,29996,29996,29997,29997,29996,29996,29996,29996,29996,29998,29999,29999]} 1. d4 {[%emt 0:00:04]} Nf6 {[%emt 0:00:06]} 2. c4 {[%emt 0:00:12]} g6 {[%emt 0:00:05]} 3. Nc3 {[%emt 0:00:07]} Bg7 {[%emt 0:00:05]} 4. e4 {[%emt 0:00:04]} d6 {[%emt 0:00:07]} 5. Be2 {[%emt 0:00:05]} O-O {[%emt 0:00:08]} 6. Bg5 {[%emt 0:00:02]} h6 {[%emt 0:01:06]} 7. Be3 {[%emt 0:00:14]} e5 {[%emt 0:01:03]} 8. d5 {[%emt 0:01:33]} Nbd7 {[%emt 0:02:10]} 9. Nf3 {[%emt 0:02:07] E73: King's Indian: Averbakh Variation without 6...c5.} (9. h4 $14) 9... Ng4 $11 {[%emt 0:04:20]} 10. Bc1 {[%emt 0:04:36]} a5 {[%emt 0:06:28]} 11. O-O {[%emt 0:00:33] White is slightly better.} (11. h3 $5 Ngf6 $8 12. Be3 $14) 11... Nc5 {[%emt 0:01:51]} 12. g3 {[%emt 0:07:49]} Nf6 {[%emt 0:02:41]} 13. Nd2 $146 {[%emt 0:02:24]} ({Predecessor:} 13. Qc2 Qe8 14. Nh4 Bh3 15. Re1 Nfd7 16. Nb5 Na6 17. Bd2 c6 18. Nxd6 Qb8 19. c5 Naxc5 {1-0 Porper,E (2448)-Ganguly,S (2637) Canadian op Edmonton 2009 (9)}) 13... Bh3 {[%emt 0:01:29]} 14. Re1 {[%emt 0:00:01]} Qd7 {[%emt 0:02:16]} 15. b3 {[%emt 0:01:21]} Ng4 {[%emt 0:03:09]} 16. Nf1 {[%emt 0:06:57]} (16. Ba3 $11) 16... f5 $17 {[%emt 0:04:14]} 17. f3 {[%emt 0:00:20] [#]} Bxf1 $2 {[%emt 0:02:07]} ({Black should try} 17... Nf2 $1 $17 {[%cal Rf2d1]} 18. Kxf2 fxe4) 18. Bxf1 $11 {[%emt 0:00:51]} (18. fxg4 Bxe2 (18... Nxe4 19. Nxe4 Bxe2 20. Qxe2 $11) 19. Rxe2 fxg4 $15) (18. Rxf1 $5 Nf6 $8 19. exf5 $16) 18... Nf6 {[%emt 0:01:17]} 19. Bh3 {[%emt 0:00:11]} Nh5 {[%emt 0:01:09]} (19... Nh7 $1 $14) 20. Rb1 $16 {[%emt 0:01:11]} Qe7 {[%emt 0:02:12]} 21. a3 {[%emt 0:12:19]} (21. exf5 $16 {Hoping for Ne4.} gxf5 22. f4) 21... b6 {[%emt 0:03:22] This costs Black the game.} (21... f4 $14) 22. b4 {[%emt 0:00:18]} axb4 {[%emt 0:02:25]} 23. axb4 {[%emt 0:00:08]} Nd7 {[%emt 0:00:43]} (23... Nb7 {was worth a try.} 24. exf5 gxf5) 24. Nb5 {[%emt 0:01:32][%cal Bc3b5,Bb5d4,Bd4f5][%mdl 32]} Nb8 $2 {[%emt 0:02:21]} (24... fxe4 25. Rxe4 (25. Nxc7 exf3 26. Re3 f2+ 27. Kf1 Rac8 $14) (25. Be6+ Kh7 $16) 25... Ndf6) 25. exf5 $18 {[%emt 0:03:56]} gxf5 {[%emt 0:00:33]} 26. f4 {[%emt 0:00:01]} Nf6 {[%emt 0:03:51]} 27. fxe5 {[%emt 0:02:17]} dxe5 {[%emt 0:00:20]} 28. Bxf5 {[%emt 0:00:08][%cal Bh3f5,Bf5c2,Bc2b3][%mdl 32]} Kh8 {[%emt 0:01:52] Black is weak on the light squares} 29. Nd4 {[%emt 0:05:27]} Nfd7 {[%emt 0:02:54]} (29... Nxd5 $142 30. Qg4 (30. cxd5 Qf7 $18) 30... Qf6) 30. Bc2 {[%emt 0:02:58] A strong pair of Bishops.} Qf6 {[%emt 0:01:30]} 31. Nf5 {[%emt 0:00:21] Active counter play!} Ra2 {[%emt 0:02:02][%cal Oa2c2]} 32. Rf1 {[%emt 0:03:11]} Qd8 {[%emt 0:01:40]} (32... Qg6 $142 33. Bb2 Rf7) 33. Bb3 {[%emt 0:02:08]} Ra8 {[%emt 0:00:25]} 34. Nxh6 {[%emt 0:01:07]} Rxf1+ {[%emt 0:00:23]} 35. Qxf1 {[%emt 0:00:01]} Bxh6 {[%emt 0:00:50]} 36. Bxh6 {[%emt 0:00:13]} Qf6 {[%emt 0:00:28]} 37. Qh3 {[%emt 0:00:17]} Kg8 {[%emt 0:01:19][%cal Bh8g8,Bg8h7,Bh7g7][%mdl 32] [#]} 38. c5 $1 {[%emt 0:00:17] Rf1 would kill now.} Ra3 {[%emt 0:01:49]} (38... Kh7 39. Bg5+) 39. Qe6+ {[%emt 0:05:02]} (39. Rf1 $142 Rxb3 40. Rxf6 Rb1+ 41. Rf1 Rxf1+ 42. Kxf1 Kh7 43. Qe6 Na6 44. h4 (44. Qxd7+ Kxh6 45. cxb6 cxb6 $18)) 39... Kh7 {[%emt 0:00:39]} 40. Qxf6 {[%emt 0:05:44]} Nxf6 {[%emt 0:00:08]} 41. Bg5 {[%emt 0:00:18]} Kg7 {[%emt 0:00:30]} 42. Bc1 {[%emt 0:01:09]} Ra8 {[%emt 0:00:09]} 43. Bb2 {[%emt 0:00:08]} bxc5 {[%emt 0:00:14]} 44. bxc5 {[%emt 0:00:19]} Nbd7 {[%emt 0:00:09]} 45. c6 {[%emt 0:00:22]} Nc5 {[%emt 0:00:10]} 46. Bxe5 {[%emt 0:00:10]} Nxb3 {[%emt 0:00:30]} 47. Rxb3 {[%emt 0:00:09][%cal Ob3b7]} Re8 {[%emt 0:00:09]} 48. Bxf6+ {[%emt 0:02:40]} Kxf6 {[%emt 0:00:10][%mdl 4096] Endgame KR-KR. White is 3 pawns up.} 49. Rb7 {[%emt 0:01:18]} Re7 {[%emt 0:00:38] [#]} 50. d6 $1 {[%emt 0:00:28] White mates.} cxd6 {[%emt 0:00:09][%cal Bc7d6,Bd6d5,Bd5d4][%mdl 32]} (50... Re8 51. d7) 51. Rxe7 {[%emt 0:00:02]} Kxe7 {[%emt 0:00:09] KP-KP. White is two pawns up.} 52. h4 {[%emt 0:00:02]} d5 {[%emt 0:00:11]} 53. h5 {[%emt 0:00:03]} d4 {[%emt 0:00:07]} 54. Kf2 {[%emt 0:00:04]} Kd6 {[%emt 0:00:06]} 55. h6 {[%emt 0:00:02]} Kxc6 {[%emt 0:00:08] KPP-KP. White is a pawn up.} 56. h7 {[%emt 0:00:02]} Kc5 {[%emt 0:00:08]} 57. h8=Q {[%emt 0:00:05]} Kc4 {[%emt 0:00:07]} 58. Ke2 {[%emt 0:00:04]} Kc3 {[%emt 0:00:13]} 59. Qc8+ {[%emt 0:00:03]} Kb2 {[%emt 0:00:08]} 60. Kd3 {[%emt 0:00:04]} Kb1 {[%emt 0:00:07]} 61. Qb7+ {[%emt 0:00:08]} Ka1 {[%emt 0:00:06]} 62. Qa6+ {[%emt 0:00:03]} Kb1 {[%emt 0:00:14]} 63. Kxd4 {[%emt 0:00:02]} Kb2 {[%emt 0:00:09]} 64. Qb5+ {[%emt 0:00:02]} Ka2 {[%emt 0:00:07]} 65. Kc3 {[%emt 0:00:04][%csl Gc3][%cal Rb5b2]} Ka1 {[%emt 0:00:07]} 66. Qb2# {[%emt 0:00:02] Weighted Error Value: White=0.56/Black=1.00  Mistake:       	White=2     	Black=7      Inaccurate:     	White=2     	Black=1      OK:         	White=9     	Black=12     Best:        	White=1     	Black=1      Brilliant:      	White=1     	---} 1-0

[Event "22nd Indian Women chT 2025"]
[Site "Gujarat"]
[Date "2025.03.05"]
[Round "1.7"]
[White "Krishi Sutariya"]
[Black "Arpita, Mukherjee"]
[Result "0-1"]
[Annotator "TA"]
[ECO "D00"]
[WhiteElo "1476"]
[BlackElo "2163"]
[PlyCount "84"]
[EventDate "2025.03.03"]
[EventCountry "IND"]
[SourceTitle "playchess.com"]
[Source "ChessBase"]
[SourceQuality "1"]
[TimeControl "5400+30"]

{[%evp 9,84,-12,0,-62,7,12,15,-21,10,9,0,0,0,0,15,12,25,6,22,-46,-38,-46,-35,-52,-29,-41,-31,-45,-51,-66,-45,-130,-142,-175,-164,-255,-286,-300,-277,-284,-285,-377,-340,-483,-498,-526,-489,-554,-523,-534,-543,-583,-514,-754,-732,-2538,-1281,-2590,-2485,-2441,-2326,-29982,-29983,-29968,-12371,-29988,-29989,-29989,-29990,-29991,-29992,-29992,-29993,-29993,-29993,-29993,-29993]} 1. d4 {[%emt 0:00:12]} Nf6 {[%emt 0:00:42]} 2. Bf4 {[%emt 0:01:07]} d5 {[%emt 0:00:14]} 3. e3 {[%emt 0:01:29]} c5 {[%emt 0:00:11]} 4. c3 {[%emt 0:00:59]} Nc6 {[%emt 0:00:07]} 5. Bd3 {[%emt 0:01:42]} Qb6 {[%emt 0:00:43] White must now prevent ...c4.} 6. Qc1 {[%emt 0:02:25] D00: 1 d4 d5: Unusual lines.} (6. Qb3 $11) 6... Bg4 {[%emt 0:00:58]} (6... cxd4 $15 7. cxd4 Nb4) 7. Nd2 {[%emt 0:03:18]} e6 {[%emt 0:02:05]} 8. Ngf3 {[%emt 0:01:45] The position is equal.} Be7 {[%emt 0:01:37]} 9. O-O {[%emt 0:04:33]} O-O {[%emt 0:00:37]} 10. Qb1 {[%emt 0:05:03]} Bxf3 $146 {[%emt 0:03:07]} ({Predecessor:} 10... Bh5 11. Ne5 Rac8 12. Bg5 Qc7 13. Nxc6 bxc6 14. Bxf6 gxf6 15. Bxh7+ Kg7 16. Bd3 Rh8 {1-0 Nakamura,H (2781)-Bai,J (2571) PRO League Stage rapid 2018 (9)}) 11. Nxf3 {[%emt 0:03:05]} h6 {[%emt 0:00:15]} 12. h3 {[%emt 0:02:36]} Nd7 {[%emt 0:00:20]} 13. Bh2 {[%emt 0:06:07]} Rfe8 {[%emt 0:09:43]} 14. Ne5 {[%emt 0:06:36]} (14. a3 $11) 14... Ncxe5 $15 {[%emt 0:01:56]} 15. dxe5 {[%emt 0:00:24]} c4 {[%emt 0:00:59]} 16. Bc2 {[%emt 0:00:04]} Nc5 {[%emt 0:00:12]} 17. Rd1 {[%emt 0:05:17]} a5 {[%emt 0:00:35]} 18. Rd4 {[%emt 0:10:04]} a4 {[%emt 0:00:44]} 19. Rg4 {[%emt 0:02:38]} Kh8 {[%emt 0:02:41]} 20. Qc1 {[%emt 0:04:58] [#] Black continues to play with concentration.} ({Better is} 20. a3 $15) 20... a3 $1 $17 {[%emt 0:15:33][%mdl 512] Black plays on the queen side and is better Black is more active.} 21. bxa3 {[%emt 0:04:14][%csl Oa2,Oa3,Oc3] White has weak pawns. Black has space advantage and is better} (21. Rb1 axb2) 21... Qa5 {[%emt 0:01:21][%csl LRa3,LRc3]} 22. Qd1 {[%emt 0:03:45]} (22. e4 $142) 22... Qxc3 $19 {[%emt 0:02:47]} 23. Bf4 {[%emt 0:03:04]} Nd3 {[%emt 0:02:53]} (23... Qxa3 24. Rg3 $17) 24. Bxd3 {[%emt 0:01:14]} Qxd3 {[%emt 0:00:20]} 25. Qf3 {[%emt 0:03:07]} Qf5 {[%emt 0:00:21]} (25... Rxa3 26. Bxh6 Qf5 (26... gxh6 $2 27. Qxf7 Bg5 28. Qxe8+ $18) 27. Bxg7+ (27. Rxg7 $2 Qxf3 28. gxf3 Bf8 $19) 27... Kh7 28. Rf4 $16) 26. h4 {[%emt 0:03:51]} (26. Qe2 {was called for.}) 26... c3 {[%emt 0:01:47]} (26... Bxa3 27. Qg3 Bf8 28. a4 $19) 27. Qg3 {[%emt 0:03:03]} Rg8 {[%emt 0:00:08][%cal Oc3c2]} 28. Rc1 {[%emt 0:02:35]} h5 {[%emt 0:00:22]} (28... Rxa3 $2 29. Bxh6 c2 (29... Rxa2 30. Rxg7 Rga8 31. e4 $11) 30. Bg5 $17) ({Weaker is} 28... Bxa3 29. Rxc3 Be7 30. e4 dxe4 (30... Qxe4 31. Be3 $15) 31. Be3 $17) 29. Rg5 {[%emt 0:02:55]} Bxg5 {[%emt 0:00:11]} 30. Bxg5 {[%emt 0:00:28]} Rgc8 {[%emt 0:00:31]} 31. e4 {[%emt 0:03:20]} Qxe4 {[%emt 0:00:23]} 32. Rxc3 {[%emt 0:01:17]} Qe1+ {[%emt 0:00:06]} 33. Kh2 {[%emt 0:00:44]} Rxc3 {[%emt 0:00:49]} 34. Qf4 {[%emt 0:00:59]} Kg8 {[%emt 0:00:30]} 35. Qd2 {[%emt 0:01:26]} Qxd2 {[%emt 0:00:08]} 36. Bxd2 {[%emt 0:00:23]} Rcxa3 {[%emt 0:00:07]} 37. Be3 {[%emt 0:00:56] [#]} Rxe3 $1 {[%emt 0:00:06] Black mates.} 38. fxe3 {[%emt 0:00:18]} Rxa2 {[%emt 0:00:03]} 39. Kg3 {[%emt 0:00:29]} b5 {[%emt 0:00:04]} 40. Kf3 {[%emt 0:00:17]} b4 {[%emt 0:00:05]} 41. e4 {[%emt 0:00:48]} b3 {[%emt 0:00:18]} 42. exd5 {[%emt 0:00:17]} exd5 {[%emt 0:00:08] Weighted Error Value: White=0.74/Black=0.11 (very precise)   Mistake:       	White=4     	Black=1      Inaccurate:     	White=4     	Black=1      OK:         	White=3     	Black=12} 0-1

[Event "22nd Indian Women chT 2025"]
[Site "Gujarat"]
[Date "2025.03.05"]
[Round "1.8"]
[White "Priyanka, K."]
[Black "Lakhnotra Khushali D"]
[Result "1-0"]
[Annotator "NA RC"]
[ECO "C01"]
[WhiteElo "2086"]
[BlackElo "1601"]
[PlyCount "97"]
[EventDate "2025.03.03"]
[EventCountry "IND"]
[SourceTitle "playchess.com"]
[Source "ChessBase"]
[SourceQuality "1"]
[TimeControl "5400+30"]

1. e4 {[%emt 0:00:15]} e6 {[%emt 0:00:18]} 2. d4 {[%emt 0:00:24]} d5 {[%emt 0:00:06]} 3. Nc3 {[%emt 0:00:29]} Bb4 {[%emt 0:00:31]} 4. exd5 {[%emt 0:00:48]} exd5 {[%emt 0:01:03]} 5. Bd3 {[%emt 0:00:13]} Ne7 {[%emt 0:06:03]} 6. Nf3 {[%emt 0:01:30]} Bg4 {[%emt 0:02:35]} 7. O-O {[%emt 0:02:26]} O-O {[%emt 0:00:23]} 8. Bxh7+ {[%emt 0:01:21]} Kh8 {[%emt 0:02:06]} 9. Bd3 {[%emt 0:01:11]} Nbc6 {[%emt 0:11:37]} 10. h3 {[%emt 0:00:56]} Bh5 {[%emt 0:10:19]} 11. Be2 {[%emt 0:09:21]} f6 {[%emt 0:17:36]} 12. Nh4 {[%emt 0:05:01]} Bxe2 {[%emt 0:04:23]} 13. Nxe2 {[%emt 0:01:19]} g5 {[%emt 0:02:17]} 14. Nf3 {[%emt 0:01:10]} Ng6 {[%emt 0:00:21]} 15. Ng3 {[%emt 0:00:53]} Be7 {[%emt 0:05:44]} 16. Nf5 {[%emt 0:01:34]} Kg8 {[%emt 0:12:41]} 17. Nh2 {[%emt 0:01:46]} Kf7 {[%emt 0:08:00]} 18. Ng4 {[%emt 0:03:18]} Rh8 {[%emt 0:07:01]} 19. Ngh6+ {[%emt 0:01:06]} Kf8 {[%emt 0:02:49]} 20. Qh5 {[%emt 0:02:58]} Qe8 {[%emt 0:00:54]} 21. Qf3 {[%emt 0:01:03]} Rxh6 {[%emt 0:01:48]} 22. Nxh6 {[%emt 0:00:25]} Kg7 {[%emt 0:00:34]} 23. Nf5+ {[%emt 0:00:15]} Kh7 {[%emt 0:00:46]} 24. Re1 {[%emt 0:01:22]} Nh4 {[%emt 0:01:44]} 25. Nxh4 {[%emt 0:00:45]} gxh4 {[%emt 0:00:06]} 26. Qf5+ {[%emt 0:00:36]} Qg6 {[%emt 0:00:22]} 27. Qxg6+ {[%emt 0:00:18]} Kxg6 {[%emt 0:00:06]} 28. Bf4 {[%emt 0:00:21]} Bb4 {[%emt 0:01:06]} 29. c3 {[%emt 0:00:15]} Nxd4 {[%emt 0:00:19]} 30. cxd4 {[%emt 0:00:25]} Bxe1 {[%emt 0:00:06]} 31. Rxe1 {[%emt 0:00:03]} c6 {[%emt 0:00:39]} 32. Re7 {[%emt 0:00:08]} b6 {[%emt 0:00:16]} 33. Rc7 {[%emt 0:00:14]} Kf5 {[%emt 0:00:39]} 34. Be3 {[%emt 0:00:15]} Rd8 {[%emt 0:01:13]} 35. Rxc6 {[%emt 0:00:19]} Rd7 {[%emt 0:00:11]} 36. Rc8 {[%emt 0:01:12]} Rh7 {[%emt 0:00:24]} 37. Kf1 {[%emt 0:00:40]} Ke4 {[%emt 0:00:54]} 38. Ke2 {[%emt 0:00:07]} Rg7 {[%emt 0:00:25]} 39. Re8+ {[%emt 0:00:14]} Kf5 {[%emt 0:00:18]} 40. Kf3 {[%emt 0:00:10]} Rc7 {[%emt 0:00:21]} 41. g4+ {[%emt 0:01:28]} hxg3 {[%emt 0:00:57]} 42. fxg3 {[%emt 0:00:06]} Kg6 {[%emt 0:00:22]} 43. h4 {[%emt 0:00:32]} Rc2 {[%emt 0:00:35]} 44. Re7 {[%emt 0:00:16]} Rxb2 {[%emt 0:00:18]} 45. Rxa7 {[%emt 0:00:34]} b5 {[%emt 0:00:20]} 46. g4 {[%emt 0:00:27]} Rh2 {[%emt 0:00:16]} 47. h5+ {[%emt 0:00:10]} Rxh5 {[%emt 0:00:12]} 48. gxh5+ {[%emt 0:00:03]} Kxh5 {[%emt 0:00:23]} 49. Rg7 {[%emt 0:00:06]} 1-0